fUST/lending_fUST_20250518
["ID","MTS","AMOUNT","RATE_DAILY","PERIOD"]
[361431417,1747564246932,-12636.50182523,0.00014283,2]
[361431419,1747564246941,-160.0,0.00014283,2]
[361431421,1747564246950,-422.53311782,0.00014283,2]
[361431423,1747564246959,-160.0,0.00014283,2]
[361431425,1747564246969,-450.0,0.00014383,2]
[361431427,1747564246978,-450.0,0.00014383,2]
[361431429,1747564246987,-450.0,0.00014383,2]
[361431432,1747564246997,-154.76,0.00014383,2]
[361431434,1747564247006,-450.0,0.00014383,2]
[361431436,1747564247016,-450.0,0.00014383,2]
[361431438,1747564247024,-450.0,0.00014383,2]
[361431440,1747564247033,-450.0,0.00014383,2]
[361431442,1747564247042,-450.0,0.00014383,2]
[361431444,1747564247051,-450.0,0.00014383,2]
[361431446,1747564247060,-450.0,0.00014383,2]
[361431448,1747564247069,-450.0,0.00014383,2]
[361431450,1747564247079,-450.0,0.00014383,2]
[361431452,1747564247087,-450.0,0.00014383,2]
[361431454,1747564247096,-773.76,0.00014383,2]
[361431455,1747564247107,-450.0,0.00014383,2]
[361431458,1747564247116,-450.0,0.00014383,2]
[361431460,1747564247125,-450.0,0.00014383,2]
[361431462,1747564247135,-903.77,0.00014383,2]
[361431464,1747564247144,-1921.74,0.00014383,2]
[361431466,1747564247153,-450.0,0.00014383,2]
[361431468,1747564247162,-450.0,0.00014383,2]
[361431470,1747564247171,-450.0,0.00014383,2]
[361431472,1747564247180,-450.0,0.00014383,2]
[361431474,1747564247189,-450.0,0.00014383,2]
[361431476,1747564247199,-450.0,0.00014383,2]
[361431478,1747564247208,-450.0,0.00014383,2]
[361431480,1747564247217,-648.88,0.00014383,2]
[361431482,1747564247226,-450.0,0.00014383,2]
[361431484,1747564247234,-450.0,0.00014383,2]
[361431486,1747564247244,-754.0,0.00014383,2]
[361431488,1747564247254,-450.0,0.00014383,2]
[361431490,1747564247263,-450.0,0.00014383,2]
[361431492,1747564247272,-450.0,0.00014383,2]
[361431493,1747564247281,-1597.63,0.00014383,2]
[361431495,1747564247291,-450.0,0.00014383,2]
[361431497,1747564247299,-450.0,0.00014383,2]
[361431499,1747564247309,-450.0,0.00014383,2]
[361431501,1747564247319,-450.0,0.00014383,2]
[361431503,1747564247329,-450.0,0.00014383,2]
[361431505,1747564247338,-454.83,0.00014383,2]
[361431508,1747564247352,-450.0,0.00014383,2]
[361431509,1747564247361,-450.0,0.00014383,2]
[361431511,1747564247370,-450.0,0.00014383,2]
[361431513,1747564247379,-450.0,0.00014383,2]
[361431516,1747564247390,-721.91,0.00014383,2]
[361431518,1747564247399,-450.0,0.00014383,2]
[361431520,1747564247409,-450.0,0.00014383,2]
[361431522,1747564247419,-450.0,0.00014383,2]
[361431524,1747564247428,-766.63,0.00014383,2]
[361431526,1747564247437,-450.0,0.00014383,2]
[361431528,1747564247446,-450.0,0.00014383,2]
[361431530,1747564247455,-450.0,0.00014383,2]
[361431531,1747564247464,-450.0,0.00014383,2]
[361431532,1747564247473,-479.68,0.00014383,2]
[361431533,1747564247482,-450.0,0.00014383,2]
[361431534,1747564247491,-450.0,0.00014383,2]
[361431535,1747564247499,-450.0,0.00014383,2]
[361431536,1747564247509,-450.0,0.00014383,2]
[361431537,1747564247518,-450.0,0.00014383,2]
[361431538,1747564247526,-450.0,0.00014383,2]
[361431539,1747564247535,-557.95,0.00014383,2]
[361431540,1747564247544,-450.0,0.00014383,2]
[361431541,1747564247554,-450.0,0.00014383,2]
[361431542,1747564247564,-450.0,0.00014383,2]
[361431543,1747564247573,-513.51,0.00014383,2]
[361431544,1747564247582,-450.0,0.00014383,2]
[361431545,1747564247591,-450.0,0.00014383,2]
[361431546,1747564247600,-450.0,0.00014383,2]
[361431547,1747564247609,-450.0,0.00014383,2]
[361431548,1747564247618,-450.0,0.00014383,2]
[361431549,1747564247627,-450.0,0.00014383,2]
[361431550,1747564247636,-450.0,0.00014383,2]
[361431551,1747564247645,-1535.69,0.00014383,2]
[361431552,1747564247654,-450.0,0.00014383,2]
[361431553,1747564247663,-450.0,0.00014383,2]
[361431554,1747564247672,-500.0,0.00014476,2]
[361431555,1747564247681,-500.0,0.00014476,2]
[361431556,1747564247690,-500.0,0.00014476,2]
[361431557,1747564247699,-346.0162765,0.00014476,2]
[361431558,1747564247708,-500.0,0.00014476,2]
[361431559,1747564247717,-500.0,0.00014476,2]
[361431560,1747564247726,-500.0,0.00014476,2]
[361431561,1747564247734,-283.64,0.0001452,2]
[361431562,1747564247744,-450.0,0.0001452,2]
[361431563,1747564247753,-450.0,0.0001452,2]
[361431564,1747564247761,-450.0,0.0001452,2]
[361431565,1747564247771,-450.0,0.0001452,2]
[361431566,1747564247779,-450.0,0.0001452,2]
[361431567,1747564247788,-520.05,0.0001452,2]
[361431568,1747564247797,-450.0,0.0001452,2]
[361431569,1747564247806,-450.0,0.0001452,2]
[361431570,1747564247815,-450.0,0.0001452,2]
[361431571,1747564247824,-773.76,0.0001452,2]
[361431572,1747564247833,-450.0,0.0001452,2]
[361431573,1747564247842,-450.0,0.0001452,2]
[361431574,1747564247852,-903.77,0.0001452,2]
[361431575,1747564247861,-1921.74,0.0001452,2]
[361431576,1747564247870,-450.0,0.0001452,2]
[361431577,1747564247878,-450.0,0.0001452,2]
[361431578,1747564247887,-450.0,0.0001452,2]
[361431579,1747564247896,-450.0,0.0001452,2]
[361431580,1747564247905,-450.0,0.0001452,2]
[361431581,1747564247914,-450.0,0.0001452,2]
[361431582,1747564247923,-648.88,0.0001452,2]
[361431583,1747564247931,-450.0,0.0001452,2]
[361431584,1747564247940,-450.0,0.0001452,2]
[361431585,1747564247949,-450.0,0.0001452,2]
[361431586,1747564247958,-754.0,0.0001452,2]
[361431587,1747564247967,-450.0,0.0001452,2]
[361431588,1747564247976,-450.0,0.0001452,2]
[361431589,1747564247985,-450.0,0.0001452,2]
[361431590,1747564247994,-1597.63,0.0001452,2]
[361431591,1747564248003,-450.0,0.0001452,2]
[361431592,1747564248012,-450.0,0.0001452,2]
[361431593,1747564248021,-450.0,0.0001452,2]
[361431594,1747564248030,-450.0,0.0001452,2]
[361431595,1747564248039,-450.0,0.0001452,2]
[361431596,1747564248048,-454.83,0.0001452,2]
[361431597,1747564248057,-450.0,0.0001452,2]
[361431598,1747564248065,-450.0,0.0001452,2]
[361431599,1747564248074,-450.0,0.0001452,2]
[361431600,1747564248083,-508.23703364,0.0001452,2]
[361431601,1747564248092,-721.91,0.0001452,2]
[361431602,1747564248101,-450.0,0.0001452,2]
[361431603,1747564248110,-450.0,0.0001452,2]
[361431604,1747564248120,-450.0,0.0001452,2]
[361431605,1747564248129,-766.63,0.0001452,2]
[361431606,1747564248137,-450.0,0.0001452,2]
[361431607,1747564248146,-450.0,0.0001452,2]
[361431608,1747564248155,-450.0,0.0001452,2]
[361431609,1747564248165,-450.0,0.0001452,2]
[361431610,1747564248174,-479.68,0.0001452,2]
[361431612,1747564248183,-450.0,0.0001452,2]
[361431614,1747564248192,-459.24,0.0001452,2]
[361431616,1747564248201,-450.0,0.0001452,2]
[361431618,1747564248211,-450.0,0.0001452,2]
[361431620,1747564248221,-450.0,0.0001452,2]
[361431623,1747564248230,-450.0,0.0001452,2]
[361431624,1747564248239,-557.95,0.0001452,2]
[361431626,1747564248249,-450.0,0.0001452,2]
[361431628,1747564248258,-450.0,0.0001452,2]
[361431630,1747564248267,-450.0,0.0001452,2]
[361431632,1747564248276,-513.51,0.0001452,2]
[361431634,1747564248287,-450.0,0.0001452,2]
[361431637,1747564248297,-450.0,0.0001452,2]
[361431639,1747564248305,-450.0,0.0001452,2]
[361431640,1747564248315,-450.0,0.0001452,2]
[361431643,1747564248324,-450.0,0.0001452,2]
[361431644,1747564248334,-1535.69,0.0001452,2]
[361431646,1747564248344,-450.0,0.0001452,2]
[361431647,1747564248354,-450.0,0.0001452,2]
[361431650,1747564248363,-500.0,0.00014579,2]
[361431652,1747564248373,-500.0,0.00014594,2]
[361431654,1747564248382,-500.0,0.00014599,2]
[361431655,1747564248391,-500.0,0.00014599,2]
[361431658,1747564248400,-1000.0,0.00014619,2]
[361431659,1747564248409,-353.08,0.00014657,2]
[361431661,1747564248418,-410.36,0.00014657,2]
[361431663,1747564248429,-450.0,0.00014657,2]
[361431665,1747564248439,-450.0,0.00014657,2]
[361431667,1747564248448,-450.0,0.00014657,2]
[361431669,1747564248458,-450.0,0.00014657,2]
[361431672,1747564248467,-450.0,0.00014657,2]
[361431674,1747564248477,-773.76,0.00014657,2]
[361431675,1747564248486,-410.27,0.00014657,2]
[361431677,1747564248496,-240.24,0.00014657,2]
[361431679,1747564248505,-903.77,0.00014657,2]
[361431681,1747564248515,-1921.74,0.00014657,2]
[361431683,1747564248524,-450.0,0.00014657,2]
[361431685,1747564248534,-450.0,0.00014657,2]
[361431688,1747564248544,-450.0,0.00014657,2]
[361431690,1747564248554,-450.0,0.00014657,2]
[361431692,1747564248563,-450.0,0.00014657,2]
[361431694,1747564248572,-648.88,0.00014657,2]
[361431696,1747564248581,-450.0,0.00014657,2]
[361431698,1747564248591,-754.0,0.00014657,2]
[361431700,1747564248603,-450.0,0.00014657,2]
[361431702,1747564248612,-1597.63,0.00014657,2]
[361431704,1747564248622,-450.0,0.00014657,2]
[361431705,1747564248632,-450.0,0.00014657,2]
[361431708,1747564248642,-454.83,0.00014657,2]
[361431710,1747564248652,-450.0,0.00014657,2]
[361431712,1747564248661,-230.44,0.00014657,2]
[361431714,1747564248671,-450.0,0.00014657,2]
[361431716,1747564248682,-721.91,0.00014657,2]
[361431718,1747564248692,-450.0,0.00014657,2]
[361431720,1747564248701,-766.63,0.00014657,2]
[361431722,1747564248710,-450.0,0.00014657,2]
[361431723,1747564248720,-450.0,0.00014657,2]
[361431726,1747564248731,-479.68,0.00014657,2]
[361431728,1747564248740,-450.0,0.00014657,2]
[361431730,1747564248750,-450.0,0.00014657,2]
[361431732,1747564248760,-450.0,0.00014657,2]
[361431734,1747564248770,-450.0,0.00014657,2]
[361431736,1747564248779,-312.48,0.00014657,2]
[361431738,1747564248789,-557.95,0.00014657,2]
[361431740,1747564248798,-450.0,0.00014657,2]
[361431741,1747564248807,-450.0,0.00014657,2]
[361431743,1747564248816,-513.51,0.00014657,2]
[361431745,1747564248825,-450.0,0.00014657,2]
[361431747,1747564248835,-450.0,0.00014657,2]
[361431749,1747564248844,-450.0,0.00014657,2]
[361431752,1747564248855,-450.0,0.00014657,2]
[361431753,1747564248864,-1535.69,0.00014657,2]
[361431756,1747564248874,-450.0,0.00014657,2]
[361431758,1747564248883,-5667.59747851,0.00014659,2]
[361431760,1747564248893,-1001.49922648,0.00014685,2]
[361431762,1747564248902,-500.0,0.00014685,2]
[361431763,1747564248911,-500.0,0.00014685,2]
[361431766,1747564248921,-450.0,0.00014794,2]
[361431767,1747564248931,-306.36,0.00014794,2]
[361431769,1747564248940,-450.0,0.00014794,2]
[361431771,1747564248949,-450.0,0.00014794,2]
[361431773,1747564248958,-450.0,0.00014794,2]
[361431775,1747564248967,-773.76,0.00014794,2]
[361431777,1747564248977,-903.77,0.00014794,2]
[361431779,1747564248986,-1921.74,0.00014794,2]
[361431781,1747564248995,-450.0,0.00014794,2]
[361431783,1747564249004,-450.0,0.00014794,2]
[361431785,1747564249013,-450.0,0.00014794,2]
[361431787,1747564249023,-450.0,0.00014794,2]
[361431789,1747564249032,-351.92,0.00014794,2]
[361431791,1747564249041,-648.88,0.00014794,2]
[361431793,1747564249050,-450.0,0.00014794,2]
[361431795,1747564249059,-754.0,0.00014794,2]
[361431797,1747564249068,-1597.63,0.00014794,2]
[361431799,1747564249078,-450.0,0.00014794,2]
[361431801,1747564249087,-450.0,0.00014794,2]
[361431814,1747564249202,-454.83,0.00014794,2]
[361431816,1747564249213,-450.0,0.00014794,2]
[361431818,1747564249223,-533.99,0.00014794,2]
[361431820,1747564249233,-721.91,0.00014794,2]
[361431822,1747564249242,-460.35,0.00014794,2]
[361431824,1747564249252,-766.63,0.00014794,2]
[361431826,1747564249262,-450.0,0.00014794,2]
[361431828,1747564249271,-520.69,0.00014794,2]
[361431830,1747564249280,-479.68,0.00014794,2]
[361431832,1747564249290,-450.0,0.00014794,2]
[361431834,1747564249299,-450.0,0.00014794,2]
[361431836,1747564249309,-450.0,0.00014794,2]
[361431838,1747564249319,-450.0,0.00014794,2]
[361431840,1747564249329,-557.95,0.00014794,2]
[361431842,1747564249338,-450.0,0.00014794,2]
[361431844,1747564249352,-450.0,0.00014794,2]
[361431846,1747564249361,-513.51,0.00014794,2]
[361431848,1747564249371,-450.0,0.00014794,2]
[361431850,1747564249380,-450.0,0.00014794,2]
[361431852,1747564249391,-450.0,0.00014794,2]
[361431854,1747564249400,-1535.69,0.00014794,2]
[361431856,1747564249408,-450.0,0.00014794,2]
[361431858,1747564249417,-1000.0,0.00014811,2]
[361431859,1747564249427,-1011.69255546,0.00014811,2]
[361431860,1747564249436,-151.0,0.0001493,2]
[361431861,1747564249445,-450.0,0.00014931,2]
[361431862,1747564249454,-450.0,0.00014931,2]
[361431863,1747564249463,-450.0,0.00014931,2]
[361431864,1747564249472,-450.0,0.00014931,2]
[361431865,1747564249481,-773.76,0.00014931,2]
[361431866,1747564249490,-1921.74,0.00014931,2]
[361431867,1747564249499,-450.0,0.00014931,2]
[361431868,1747564249508,-903.77,0.00014931,2]
[361431869,1747564249517,-450.0,0.00014931,2]
[361431870,1747564249526,-450.0,0.00014931,2]
[361431871,1747564249535,-450.0,0.00014931,2]
[361431872,1747564249544,-648.88,0.00014931,2]
[361431873,1747564249553,-377.01,0.00014931,2]
[361431874,1747564249562,-754.0,0.00014931,2]
[361431875,1747564249571,-1597.63,0.00014931,2]
[361431876,1747564249580,-450.0,0.00014931,2]
[361431877,1747564249589,-450.0,0.00014931,2]
[361431878,1747564249599,-454.83,0.00014931,2]
[361431879,1747564249608,-450.0,0.00014931,2]
[361431880,1747564249617,-721.91,0.00014931,2]
[361431881,1747564249626,-766.63,0.00014931,2]
[361431882,1747564249635,-450.0,0.00014931,2]
[361431883,1747564249645,-479.68,0.00014931,2]
[361431884,1747564249654,-450.0,0.00014931,2]
[361431885,1747564249663,-450.0,0.00014931,2]
[361431886,1747564249672,-450.0,0.00014931,2]
[361431887,1747564249680,-557.95,0.00014931,2]
[361431888,1747564249690,-450.0,0.00014931,2]
[361431889,1747564249699,-450.0,0.00014931,2]
[361431890,1747564249708,-513.51,0.00014931,2]
[361431891,1747564249717,-450.0,0.00014931,2]
[361431892,1747564249726,-439.68,0.00014931,2]
[361431893,1747564249735,-450.0,0.00014931,2]
[361431894,1747564249744,-1535.69,0.00014931,2]
[361431895,1747564249754,-450.0,0.00014931,2]
[361431896,1747564249763,-156.60092808,0.00014968,2]
[361431897,1747564249772,-3276.18696416,0.00015,2]
[361431898,1747564249781,-160.0,0.00015,2]
[361431900,1747564249791,-500.0,0.00015024,2]
[361431901,1747564249800,-500.0,0.00015024,2]
[361431903,1747564249810,-1000.0,0.00015024,2]
[361431905,1747564249819,-1000.0,0.00015024,2]
[361431907,1747564249829,-5667.59747851,0.00015038,2]
[361431909,1747564249838,-230.76,0.00015068,2]
[361431912,1747564249849,-196.68,0.00015068,2]
[361431913,1747564249858,-450.0,0.00015068,2]
[361431915,1747564249867,-501.36,0.00015068,2]
[361431917,1747564249876,-773.76,0.00015068,2]
[361431919,1747564249885,-1921.74,0.00015068,2]
[361431921,1747564249894,-450.0,0.00015068,2]
[361431923,1747564249903,-903.77,0.00015068,2]
[361431925,1747564249912,-558.55,0.00015068,2]
[361431927,1747564249921,-450.0,0.00015068,2]
[361431929,1747564249930,-450.0,0.00015068,2]
[361431931,1747564249939,-648.88,0.00015068,2]
[361431933,1747564249948,-754.0,0.00015068,2]
[361431935,1747564249957,-1597.63,0.00015068,2]
[361431937,1747564249966,-450.0,0.00015068,2]
[361431939,1747564249975,-331.68,0.00015068,2]
[361431940,1747564249984,-454.83,0.00015068,2]
[361431941,1747564249994,-450.0,0.00015068,2]
[361431942,1747564250003,-721.91,0.00015068,2]
[361431943,1747564250012,-766.63,0.00015068,2]
[361431944,1747564250021,-450.0,0.00015068,2]
[361431945,1747564250030,-479.68,0.00015068,2]
[361431946,1747564250040,-428.49,0.00015068,2]
[361431947,1747564250049,-450.0,0.00015068,2]
[361431948,1747564250058,-450.0,0.00015068,2]
[361431949,1747564250067,-557.95,0.00015068,2]
[361431950,1747564250076,-450.0,0.00015068,2]
[361431951,1747564250085,-450.0,0.00015068,2]
[361431952,1747564250094,-513.51,0.00015068,2]
[361431953,1747564250104,-450.0,0.00015068,2]
[361431954,1747564250114,-443.16,0.00015068,2]
[361431955,1747564250123,-1535.69,0.00015068,2]
[361431956,1747564250132,-286.15,0.00015068,2]
[361431957,1747564250141,-568.86813041,0.00015167,2]
[361431958,1747564250151,-307.32,0.00015205,2]
[361431959,1747564250160,-773.76,0.00015205,2]
[361431960,1747564250170,-1921.74,0.00015205,2]
[361431961,1747564250180,-450.0,0.00015205,2]
[361431962,1747564250189,-903.77,0.00015205,2]
[361431963,1747564250199,-450.0,0.00015205,2]
[361431964,1747564250208,-450.0,0.00015205,2]
[361431965,1747564250217,-648.88,0.00015205,2]
[361431966,1747564250226,-754.0,0.00015205,2]
[361431967,1747564250235,-483.92471283,0.00015205,2]
[361431968,1747564250380,-1113.70528717,0.00015205,2]
[361431969,1747564250390,-283.733874,0.00015205,2]
[361431970,1747564250401,-166.266126,0.00015205,2]
[361431971,1747564250411,-454.83,0.00015205,2]
[361431972,1747564250420,-125.38871871,0.00015205,2]
[361431973,1747564250431,-67.23128129,0.00015205,2]
[361431974,1747564250440,-721.91,0.00015205,2]
[361431975,1747564250449,-766.63,0.00015205,2]
[361431976,1747564250458,-450.0,0.00015205,2]
[361431977,1747564250468,-291.73871871,0.00015205,2]
[361431978,1747564250608,-450.0,0.00013698,2]
[361431979,1747564250618,-450.0,0.00013698,2]
[361431980,1747564250627,-450.0,0.00013698,2]
[361431981,1747564250637,-450.0,0.00013835,2]
[361431982,1747564250647,-450.0,0.00013835,2]
[361431983,1747564250656,-450.0,0.00013972,2]
[361431984,1747564250666,-450.0,0.00013972,2]
[361431985,1747564250675,-450.0,0.00014109,2]
[361431986,1747564250684,-450.0,0.00014109,2]
[361431987,1747564250694,-346.7,0.00014246,2]
[361431988,1747564250703,-450.0,0.00014657,2]
[361431989,1747564250713,-450.0,0.00014794,2]
[361431990,1747564250722,-450.0,0.00014931,2]
[361431991,1747564250731,-300.78,0.00015068,2]
[361431992,1747564250741,-187.94128129,0.00015205,2]
[361431993,1747564250750,-450.0,0.00015205,2]
[361431994,1747564250760,-388.2,0.00015205,2]
[361431995,1747564250770,-557.95,0.00015205,2]
[361431996,1747564250779,-450.0,0.00015205,2]
[361431997,1747564250788,-450.0,0.00015205,2]
[361431998,1747564250798,-513.51,0.00015205,2]
[361431999,1747564250807,-440.28,0.00015205,2]
[361432000,1747564250816,-1535.69,0.00015205,2]
[361432001,1747564250825,-151.0,0.00015233,2]
[361432002,1747564250834,-151.0,0.00015233,2]
[361432003,1747564250843,-151.0,0.00015233,2]
[361432004,1747564250853,-151.0,0.00015233,2]
[361432005,1747564250862,-773.76,0.00015342,2]
[361432006,1747564250872,-1921.74,0.00015342,2]
[361432008,1747564250881,-322.67628907,0.00015342,2]
[361432010,1747564250897,-127.32371093,0.00015342,2]
[361432013,1747564250907,-903.77,0.00015342,2]
[361432014,1747564250917,-450.0,0.00015342,2]
[361432016,1747564250926,-459.07,0.00015342,2]
[361432018,1747564250936,-648.88,0.00015342,2]
[361432020,1747564250945,-754.0,0.00015342,2]
[361432022,1747564250954,-1597.63,0.00015342,2]
[361432024,1747564250964,-450.0,0.00015342,2]
[361432026,1747564250973,-454.83,0.00015342,2]
[361432028,1747564250983,-721.91,0.00015342,2]
[361432030,1747564250992,-766.63,0.00015342,2]
[361432033,1747564251001,-450.0,0.00015342,2]
[361432035,1747564251011,-479.68,0.00015342,2]
[361432036,1747564251020,-450.0,0.00015342,2]
[361432038,1747564251029,-557.95,0.00015342,2]
[361432040,1747564251038,-450.0,0.00015342,2]
[361432042,1747564251048,-450.0,0.00015342,2]
[361432044,1747564251057,-513.51,0.00015342,2]
[361432046,1747564251067,-1535.69,0.00015342,2]
[361432048,1747564251076,-1000.0,0.00015359,2]
[361432050,1747564251085,-5667.59747851,0.00015417,2]
[361432052,1747564251095,-773.76,0.00015479,2]
[361432054,1747564251105,-1921.74,0.00015479,2]
[361432056,1747564251115,-401.89004383,0.00015479,2]
[361432065,1747564251189,-450.0,0.00013835,2]
[361432067,1747564251199,-134.63362036,0.00015479,2]
[361432069,1747564251208,-903.77,0.00015479,2]
[361432071,1747564251217,-569.47,0.00015479,2]
[361432073,1747564251226,-648.88,0.00015479,2]
[361432075,1747564251235,-754.0,0.00015479,2]
[361432089,1747564251352,-1597.63,0.00015479,2]
[361432091,1747564251362,-450.0,0.00015479,2]
[361432093,1747564251372,-454.83,0.00015479,2]
[361432095,1747564251382,-721.91,0.00015479,2]
[361432097,1747564251392,-766.63,0.00015479,2]
[361432099,1747564251402,-364.11,0.00015479,2]
[361432101,1747564251411,-479.68,0.00015479,2]
[361432103,1747564251420,-450.0,0.00015479,2]
[361432105,1747564251429,-557.95,0.00015479,2]
[361432107,1747564251438,-450.0,0.00015479,2]
[361432109,1747564251447,-450.0,0.00015479,2]
[361432111,1747564251457,-513.51,0.00015479,2]
[361432113,1747564251466,-1535.69,0.00015479,2]
[361432115,1747564251475,-858.62764625,0.00015572,2]
[361432117,1747564251485,-1000.0,0.00015572,2]
[361432119,1747564251495,-1921.74,0.00015616,2]
[361432121,1747564251504,-903.77,0.00015616,2]
[361432122,1747564251514,-648.88,0.00015616,2]
[361432124,1747564251523,-754.0,0.00015616,2]
[361432127,1747564251534,-1597.63,0.00015616,2]
[361432129,1747564251543,-190.75,0.00015616,2]
[361432131,1747564251553,-454.83,0.00015616,2]
[361432132,1747564251562,-721.91,0.00015616,2]
[361432134,1747564251572,-766.63,0.00015616,2]
[361432137,1747564251582,-479.68,0.00015616,2]
[361432139,1747564251592,-381.36,0.00015616,2]
[361432141,1747564251602,-557.95,0.00015616,2]
[361432143,1747564251611,-450.0,0.00015616,2]
[361432144,1747564251621,-450.0,0.00015616,2]
[361432146,1747564251631,-513.51,0.00015616,2]
[361432148,1747564251640,-1535.69,0.00015616,2]
[361432150,1747564251651,-1921.74,0.00015753,2]
[361432152,1747564251660,-903.77,0.00015753,2]
[361432154,1747564251670,-648.88,0.00015753,2]
[361432156,1747564251680,-754.0,0.00015753,2]
[361432158,1747564251690,-1597.63,0.00015753,2]
[361432160,1747564251699,-454.83,0.00015753,2]
[361432162,1747564251709,-721.91,0.00015753,2]
[361432164,1747564251718,-766.63,0.00015753,2]
[361432166,1747564251728,-479.68,0.00015753,2]
[361432168,1747564251738,-557.95,0.00015753,2]
[361432170,1747564251747,-450.0,0.00015753,2]
[361432172,1747564251757,-450.0,0.00015753,2]
[361432174,1747564251767,-513.51,0.00015753,2]
[361432176,1747564251776,-1535.69,0.00015753,2]
[361432178,1747564251785,-154.619579,0.00015796,2]
[361432180,1747564251794,-151.0,0.00015796,2]
[361432182,1747564251803,-152.684419,0.00015796,2]
[361432184,1747564251813,-5667.59747851,0.00015797,2]
[361432186,1747564251823,-1921.74,0.0001589,2]
[361432188,1747564251832,-903.77,0.0001589,2]
[361432190,1747564251842,-648.88,0.0001589,2]
[361432192,1747564251851,-754.0,0.0001589,2]
[361432194,1747564251860,-1597.63,0.0001589,2]
[361432195,1747564251870,-454.83,0.0001589,2]
[361432197,1747564251880,-721.91,0.0001589,2]
[361432199,1747564251891,-766.63,0.0001589,2]
[361432202,1747564251900,-479.68,0.0001589,2]
[361432203,1747564251910,-557.95,0.0001589,2]
[361432205,1747564251920,-450.0,0.0001589,2]
[361432207,1747564251929,-450.0,0.0001589,2]
[361432209,1747564251938,-513.51,0.0001589,2]
[361432210,1747564251948,-1535.69,0.0001589,2]
[361432211,1747564251957,-1921.74,0.00016027,2]
[361432212,1747564251966,-903.77,0.00016027,2]
[361432213,1747564251975,-648.88,0.00016027,2]
[361432214,1747564251984,-754.0,0.00016027,2]
[361432215,1747564251993,-1597.63,0.00016027,2]
[361432216,1747564252003,-454.83,0.00016027,2]
[361432218,1747564252012,-721.91,0.00016027,2]
[361432220,1747564252021,-766.63,0.00016027,2]
[361432222,1747564252031,-479.68,0.00016027,2]
[361432224,1747564252040,-557.95,0.00016027,2]
[361432226,1747564252049,-450.0,0.00016027,2]
[361432228,1747564252059,-450.0,0.00016027,2]
[361432230,1747564252068,-513.51,0.00016027,2]
[361432232,1747564252077,-1535.69,0.00016027,2]
[361432234,1747564252086,-251.46315609,0.0001609,2]
[361432236,1747564252095,-437.130196,0.00016143,2]
[361432238,1747564252106,-437.130196,0.00016143,2]
[361432239,1747564252116,-151.0,0.00016143,2]
[361432241,1747564252126,-500.0,0.00016164,2]
[361432243,1747564252135,-350.0,0.00016164,2]
[361432245,1747564252145,-500.0,0.00016164,2]
[361432247,1747564252153,-500.0,0.00016164,2]